[Event "Titled Tuesday Blitz January 18 2022"]
[White "Izoria, Zviad"]
[Black "Saydaliev, Saidakbar"]
[WhiteFideId "13601733"]
[BlackFideId "14203693"]
[WhiteElo "2626"]
[BlackElo "2279"]
[Result "1-0"]
[Round "02"]
[TimeControl "180+1"]
[Date "2022.01.18"]
[WhiteClock "0:00:09"]
[BlackClock "0:00:04"]

1. Nf3 {[%clk 0:03:00]}  Nf6 {[%clk 0:02:59]} 2. c4 {[%clk 0:03:00]}  e6 {[%clk 0:02:56]} 3. g3 {[%clk 0:02:58]}  d5 {[%clk 0:02:55]} 4. Bg2 {[%clk 0:02:58]}  Be7 {[%clk 0:02:50]} 5. d4 {[%clk 0:02:57]}  O-O {[%clk 0:02:48]} 6. Qc2 {[%clk 0:02:57]}  dxc4 {[%clk 0:02:36]} 7. Nbd2 {[%clk 0:02:51]}  c5 {[%clk 0:02:24]} 8. dxc5 {[%clk 0:02:50]}  Bxc5 {[%clk 0:02:24]} 9. Nxc4 {[%clk 0:02:50]}  Bd7 {[%clk 0:01:58]} 10. Nfe5 {[%clk 0:02:18]}  Bc6 {[%clk 0:01:56]} 11. Nxc6 {[%clk 0:02:18]}  Nxc6 {[%clk 0:01:57]} 12. Bxc6 {[%clk 0:02:18]}  bxc6 {[%clk 0:01:57]} 13. O-O {[%clk 0:02:18]}  Qd5 {[%clk 0:01:51]} 14. Be3 {[%clk 0:02:13]}  Ng4 {[%clk 0:01:33]} 15. Bxc5 {[%clk 0:02:10]}  Qxc5 {[%clk 0:01:34]} 16. h3 {[%clk 0:01:59]}  Nf6 {[%clk 0:01:14]} 17. Rac1 {[%clk 0:01:59]}  Rab8 {[%clk 0:01:06]} 18. b3 {[%clk 0:01:58]}  Rfd8 {[%clk 0:01:00]} 19. Ne3 {[%clk 0:01:27]}  Qa3 {[%clk 0:00:54]} 20. Nc4 {[%clk 0:01:26]}  Qc5 {[%clk 0:00:50]} 21. Kg2 {[%clk 0:01:23]}  h5 {[%clk 0:00:44]} 22. Rfd1 {[%clk 0:01:22]}  h4 {[%clk 0:00:39]} 23. g4 {[%clk 0:01:21]}  Nd5 {[%clk 0:00:38]} 24. e3 {[%clk 0:01:20]}  Nb4 {[%clk 0:00:37]} 25. Qe2 {[%clk 0:01:19]}  Qe7 {[%clk 0:00:27]} 26. Ne5 {[%clk 0:00:59]}  c5 {[%clk 0:00:27]} 27. Nf3 {[%clk 0:00:45]}  Nd5 {[%clk 0:00:21]} 28. Rc4 {[%clk 0:00:42]}  Nb6 {[%clk 0:00:20]} 29. Rxd8+ {[%clk 0:00:40]}  Rxd8 {[%clk 0:00:21]} 30. Rc2 {[%clk 0:00:40]}  Rd5 {[%clk 0:00:17]} 31. e4 {[%clk 0:00:36]}  Rd8 {[%clk 0:00:16]} 32. Qe3 {[%clk 0:00:35]}  Nd7 {[%clk 0:00:16]} 33. Rd2 {[%clk 0:00:31]}  Nf6 {[%clk 0:00:11]} 34. Rc2 {[%clk 0:00:20]}  Qb7 {[%clk 0:00:09]} 35. Ng5 {[%clk 0:00:13]}  Rd1 {[%clk 0:00:07]} 36. Qxc5 {[%clk 0:00:12]}  Rd8 {[%clk 0:00:03]} 37. Qc7 {[%clk 0:00:12]}  Qxc7 {[%clk 0:00:01]} 38. Rxc7 {[%clk 0:00:13]}  g6 {[%clk 0:00:01]} 39. Rxa7 {[%clk 0:00:11]}  Rd2 {[%clk 0:00:01]} 40. Kf3 {[%clk 0:00:10]}  Rb2 {[%clk 0:00:01]} 41. Nxf7 {[%clk 0:00:10]}  Nd7 {[%clk 0:00:01]} 42. Ng5 {[%clk 0:00:09]}  Ne5+ {[%clk 0:00:01]} 43. Kf4 {[%clk 0:00:09]}  Nd3+ {[%clk 0:00:01]} 44. Ke3 {[%clk 0:00:10]}  Nxf2 {[%clk 0:00:02]} 45. Rd7 {[%clk 0:00:08]}  e5 {[%clk 0:00:02]} 46. Rd2 {[%clk 0:00:08]}  Rxd2 {[%clk 0:00:01]} 47. Kxd2 {[%clk 0:00:09]}  Kg7 {[%clk 0:00:01]} 48. Ke2 {[%clk 0:00:09]}  Nh1 {[%clk 0:00:01]} 49. Nf3 {[%clk 0:00:09]}  Ng3+ {[%clk 0:00:02]} 50. Ke3 {[%clk 0:00:09]}  g5 {[%clk 0:00:02]} 51. Nxe5 {[%clk 0:00:08]}  Kf6 {[%clk 0:00:03]} 52. Nf3 {[%clk 0:00:09]}  Nf1+ {[%clk 0:00:03]} 53. Kd4 {[%clk 0:00:10]}  Nd2 {[%clk 0:00:04]} 54. Nxd2 {[%clk 0:00:09]} 1-0


[Site "https://www.chess.com"]

[Event "Titled Tuesday Blitz January 18 2022"]
[White "Jakubowska, Anna"]
[Black "Csonka, Balazs"]
[WhiteFideId "1121952"]
[BlackFideId "742910"]
[WhiteElo "1924"]
[BlackElo "2404"]
[Result "1/2-1/2"]
[Round "02"]
[TimeControl "180+1"]
[Date "2022.01.18"]
[WhiteClock "0:02:06"]
[BlackClock "0:01:01"]

1. e4 {[%clk 0:03:00]}  c5 {[%clk 0:02:59]} 2. Nf3 {[%clk 0:02:59]}  Nc6 {[%clk 0:02:58]} 3. d4 {[%clk 0:02:59]}  cxd4 {[%clk 0:02:59]} 4. Nxd4 {[%clk 0:03:00]}  Nf6 {[%clk 0:02:59]} 5. Nc3 {[%clk 0:03:00]}  e5 {[%clk 0:03:00]} 6. Ndb5 {[%clk 0:03:00]}  d6 {[%clk 0:03:00]} 7. Bg5 {[%clk 0:03:00]}  a6 {[%clk 0:03:00]} 8. Na3 {[%clk 0:03:00]}  b5 {[%clk 0:03:00]} 9. Nd5 {[%clk 0:03:00]}  Be7 {[%clk 0:03:00]} 10. Bxf6 {[%clk 0:03:00]}  Bxf6 {[%clk 0:03:01]} 11. c3 {[%clk 0:03:00]}  Bg5 {[%clk 0:03:00]} 12. Nc2 {[%clk 0:03:00]}  Rb8 {[%clk 0:03:00]} 13. Be2 {[%clk 0:02:54]}  O-O {[%clk 0:02:57]} 14. O-O {[%clk 0:02:54]}  Ne7 {[%clk 0:02:56]} 15. Ncb4 {[%clk 0:02:49]}  Bb7 {[%clk 0:02:52]} 16. a4 {[%clk 0:02:46]}  a5 {[%clk 0:02:25]} 17. Nxe7+ {[%clk 0:02:40]}  Qxe7 {[%clk 0:02:25]} 18. Nd5 {[%clk 0:02:39]}  Bxd5 {[%clk 0:02:26]} 19. Qxd5 {[%clk 0:02:39]}  bxa4 {[%clk 0:02:26]} 20. Rxa4 {[%clk 0:02:26]}  Rxb2 {[%clk 0:02:24]} 21. Bc4 {[%clk 0:02:26]}  Qb7 {[%clk 0:01:38]} 22. Rxa5 {[%clk 0:02:21]}  Qxd5 {[%clk 0:01:34]} 23. Bxd5 {[%clk 0:02:20]}  Bd8 {[%clk 0:01:27]} 24. Ra6 {[%clk 0:02:19]}  Bb6 {[%clk 0:01:25]} 25. Ra2 {[%clk 0:02:13]}  Rxa2 {[%clk 0:01:14]} 26. Bxa2 {[%clk 0:02:14]}  g6 {[%clk 0:01:07]} 27. Rb1 {[%clk 0:02:12]}  Rb8 {[%clk 0:01:04]} 28. Kf1 {[%clk 0:02:09]}  Ba7 {[%clk 0:01:00]} 29. Rxb8+ {[%clk 0:02:06]}  Bxb8 {[%clk 0:01:01]} 1/2-1/2


[Site "https://www.chess.com"]

[Event "Titled Tuesday Blitz January 18 2022"]
[White "Kosteniuk, Alexandra"]
[Black "Balabayeva, Xeniya"]
[WhiteFideId "4128125"]
[BlackFideId "13719688"]
[WhiteElo "2469"]
[BlackElo "1940"]
[Result "0-1"]
[Round "02"]
[TimeControl "180+1"]
[Date "2022.01.18"]
[WhiteClock "0:00:03"]
[BlackClock "0:00:06"]

1. Nf3 {[%clk 0:02:50]}  d5 {[%clk 0:02:59]} 2. g3 {[%clk 0:02:50]}  Bg4 {[%clk 0:02:57]} 3. Bg2 {[%clk 0:02:50]}  Nd7 {[%clk 0:02:54]} 4. d4 {[%clk 0:02:49]}  e6 {[%clk 0:02:53]} 5. c4 {[%clk 0:02:49]}  c6 {[%clk 0:02:50]} 6. O-O {[%clk 0:02:40]}  Bd6 {[%clk 0:02:46]} 7. Nc3 {[%clk 0:02:38]}  Ngf6 {[%clk 0:02:42]} 8. h3 {[%clk 0:02:38]}  Bh5 {[%clk 0:02:33]} 9. cxd5 {[%clk 0:02:34]}  exd5 {[%clk 0:02:27]} 10. Qd3 {[%clk 0:02:30]}  O-O {[%clk 0:01:48]} 11. Nh4 {[%clk 0:02:28]}  Re8 {[%clk 0:01:40]} 12. Nf5 {[%clk 0:02:22]}  Bc7 {[%clk 0:01:28]} 13. g4 {[%clk 0:02:13]}  Bg6 {[%clk 0:01:27]} 14. Bg5 {[%clk 0:02:12]}  Nf8 {[%clk 0:01:11]} 15. Bh4 {[%clk 0:01:58]}  Ne6 {[%clk 0:01:07]} 16. e3 {[%clk 0:01:58]}  h6 {[%clk 0:00:52]} 17. f4 {[%clk 0:01:55]}  Bh7 {[%clk 0:00:39]} 18. Rae1 {[%clk 0:01:53]}  b5 {[%clk 0:00:36]} 19. a3 {[%clk 0:01:49]}  a5 {[%clk 0:00:36]} 20. Rc1 {[%clk 0:01:39]}  Rc8 {[%clk 0:00:34]} 21. Ne2 {[%clk 0:01:35]}  Bb6 {[%clk 0:00:31]} 22. Neg3 {[%clk 0:01:34]}  Kf8 {[%clk 0:00:27]} 23. Nh5 {[%clk 0:01:31]}  g5 {[%clk 0:00:22]} 24. Nxf6 {[%clk 0:01:28]}  Qxf6 {[%clk 0:00:21]} 25. fxg5 {[%clk 0:01:23]}  Nxg5 {[%clk 0:00:20]} 26. Qd2 {[%clk 0:01:07]}  Qe6 {[%clk 0:00:20]} 27. Qf2 {[%clk 0:01:04]}  Bxf5 {[%clk 0:00:19]} 28. Qxf5 {[%clk 0:00:58]}  Qxf5 {[%clk 0:00:19]} 29. Rxf5 {[%clk 0:00:57]}  Rxe3 {[%clk 0:00:17]} 30. Bf2 {[%clk 0:00:55]}  Ree8 {[%clk 0:00:14]} 31. Rf1 {[%clk 0:00:41]}  Ne4 {[%clk 0:00:14]} 32. Be3 {[%clk 0:00:37]}  Rc7 {[%clk 0:00:12]} 33. Bxh6+ {[%clk 0:00:35]}  Kg8 {[%clk 0:00:12]} 34. Be3 {[%clk 0:00:31]}  Ng3 {[%clk 0:00:12]} 35. Rg5+ {[%clk 0:00:31]}  Kf8 {[%clk 0:00:12]} 36. Bf4 {[%clk 0:00:27]}  Ne2+ {[%clk 0:00:12]} 37. Kh2 {[%clk 0:00:25]}  Nxf4 {[%clk 0:00:13]} 38. Rxf4 {[%clk 0:00:25]}  Rce7 {[%clk 0:00:13]} 39. Rgf5 {[%clk 0:00:25]}  Bc7 {[%clk 0:00:13]} 40. Kg3 {[%clk 0:00:25]}  Bxf4+ {[%clk 0:00:13]} 41. Rxf4 {[%clk 0:00:26]}  Re2 {[%clk 0:00:13]} 42. g5 {[%clk 0:00:22]}  Kg7 {[%clk 0:00:10]} 43. h4 {[%clk 0:00:22]}  R8e3+ {[%clk 0:00:10]} 44. Bf3 {[%clk 0:00:22]}  Rxb2 {[%clk 0:00:08]} 45. h5 {[%clk 0:00:22]}  b4 {[%clk 0:00:07]} 46. h6+ {[%clk 0:00:22]}  Kg8 {[%clk 0:00:07]} 47. axb4 {[%clk 0:00:18]}  axb4 {[%clk 0:00:07]} 48. Kg4 {[%clk 0:00:17]}  Rf2 {[%clk 0:00:07]} 49. h7+ {[%clk 0:00:14]}  Kxh7 {[%clk 0:00:06]} 50. Rxf7+ {[%clk 0:00:05]}  Kg8 {[%clk 0:00:06]} 51. Rf6 {[%clk 0:00:03]}  Rfxf3 {[%clk 0:00:06]} 0-1


[Site "https://www.chess.com"]

[Event "Titled Tuesday Blitz January 18 2022"]
[White "Kucuksari, Kaan"]
[Black "Sadovsky, Artem"]
[WhiteFideId "6380166"]
[BlackFideId "4155840"]
[WhiteElo "2305"]
[BlackElo "2369"]
[Result "1-0"]
[Round "02"]
[TimeControl "180+1"]
[Date "2022.01.18"]
[WhiteClock "0:00:02"]
[BlackClock "0:00:04"]

1. d4 {[%clk 0:03:00]}  g6 {[%clk 0:02:56]} 2. e4 {[%clk 0:02:59]}  Bg7 {[%clk 0:02:56]} 3. Nf3 {[%clk 0:02:59]}  d6 {[%clk 0:02:54]} 4. h3 {[%clk 0:02:55]}  c5 {[%clk 0:02:52]} 5. Nc3 {[%clk 0:02:50]}  cxd4 {[%clk 0:02:50]} 6. Nxd4 {[%clk 0:02:51]}  Nf6 {[%clk 0:02:49]} 7. Be3 {[%clk 0:02:50]}  O-O {[%clk 0:02:37]} 8. Qd2 {[%clk 0:02:49]}  d5 {[%clk 0:02:38]} 9. e5 {[%clk 0:02:43]}  Ne4 {[%clk 0:02:38]} 10. Nxe4 {[%clk 0:02:42]}  dxe4 {[%clk 0:02:39]} 11. e6 {[%clk 0:02:41]}  f5 {[%clk 0:02:29]} 12. c3 {[%clk 0:02:15]}  Qc7 {[%clk 0:02:02]} 13. Bf4 {[%clk 0:02:10]}  Qb6 {[%clk 0:01:59]} 14. Bc4 {[%clk 0:01:57]}  Rd8 {[%clk 0:01:55]} 15. O-O {[%clk 0:01:46]}  Nc6 {[%clk 0:01:55]} 16. Bg5 {[%clk 0:01:35]}  Nxd4 {[%clk 0:01:50]} 17. cxd4 {[%clk 0:01:35]}  Rxd4 {[%clk 0:01:51]} 18. Qe2 {[%clk 0:01:32]}  Bxe6 {[%clk 0:01:50]} 19. Rac1 {[%clk 0:01:19]}  Rc8 {[%clk 0:01:25]} 20. Bxe6+ {[%clk 0:00:49]}  Qxe6 {[%clk 0:01:26]} 21. Rxc8+ {[%clk 0:00:49]}  Qxc8 {[%clk 0:01:27]} 22. Rc1 {[%clk 0:00:49]}  Qd7 {[%clk 0:01:26]} 23. Qc2 {[%clk 0:00:40]}  h6 {[%clk 0:01:15]} 24. Be3 {[%clk 0:00:31]}  Rd6 {[%clk 0:01:09]} 25. Qb3+ {[%clk 0:00:29]}  Kh7 {[%clk 0:01:04]} 26. Bxa7 {[%clk 0:00:25]}  Rd2 {[%clk 0:00:53]} 27. Be3 {[%clk 0:00:13]}  Rxb2 {[%clk 0:00:52]} 28. Qf7 {[%clk 0:00:13]}  Rb5 {[%clk 0:00:20]} 29. a4 {[%clk 0:00:12]}  Rd5 {[%clk 0:00:20]} 30. Kh2 {[%clk 0:00:09]}  Qd6+ {[%clk 0:00:16]} 31. g3 {[%clk 0:00:10]}  Qd7 {[%clk 0:00:14]} 32. Kg2 {[%clk 0:00:06]}  Rd6 {[%clk 0:00:15]} 33. Qb3 {[%clk 0:00:05]}  Rc6 {[%clk 0:00:13]} 34. Rd1 {[%clk 0:00:06]}  Qe6 {[%clk 0:00:13]} 35. Qxb7 {[%clk 0:00:05]}  Rc2 {[%clk 0:00:12]} 36. a5 {[%clk 0:00:05]}  Qc4 {[%clk 0:00:09]} 37. Qxe7 {[%clk 0:00:03]}  Qe2 {[%clk 0:00:10]} 38. Rd7 {[%clk 0:00:02]}  Qf3+ {[%clk 0:00:09]} 39. Kg1 {[%clk 0:00:02]}  Qd1+ {[%clk 0:00:04]} 40. Rxd1 {[%clk 0:00:02]} 1-0


[Site "https://www.chess.com"]

[Event "Titled Tuesday Blitz January 18 2022"]
[White "Lugovskoy, Maxim"]
[Black "Viskelis, Darius"]
[WhiteFideId "24126454"]
[BlackFideId "12800830"]
[WhiteElo "2444"]
[BlackElo "1999"]
[Result "1-0"]
[Round "02"]
[TimeControl "180+1"]
[Date "2022.01.18"]
[WhiteClock "0:01:38"]
[BlackClock "0:00:01"]

1. e4 {[%clk 0:02:58]}  e5 {[%clk 0:02:58]} 2. Nf3 {[%clk 0:02:58]}  Nc6 {[%clk 0:02:58]} 3. Nc3 {[%clk 0:02:57]}  Nf6 {[%clk 0:02:57]} 4. d4 {[%clk 0:02:57]}  exd4 {[%clk 0:02:56]} 5. Nxd4 {[%clk 0:02:58]}  Bb4 {[%clk 0:02:55]} 6. Nxc6 {[%clk 0:02:58]}  bxc6 {[%clk 0:02:54]} 7. Bd3 {[%clk 0:02:58]}  O-O {[%clk 0:02:54]} 8. O-O {[%clk 0:02:58]}  d5 {[%clk 0:02:54]} 9. exd5 {[%clk 0:02:58]}  cxd5 {[%clk 0:02:54]} 10. h3 {[%clk 0:02:57]}  c6 {[%clk 0:02:49]} 11. Qf3 {[%clk 0:02:57]}  h6 {[%clk 0:02:39]} 12. Bf4 {[%clk 0:02:57]}  Bd6 {[%clk 0:02:34]} 13. Ne2 {[%clk 0:02:56]}  Re8 {[%clk 0:02:29]} 14. Nd4 {[%clk 0:02:49]}  Qc7 {[%clk 0:02:24]} 15. Bxd6 {[%clk 0:02:46]}  Qxd6 {[%clk 0:02:25]} 16. Rad1 {[%clk 0:02:44]}  Rb8 {[%clk 0:02:11]} 17. b3 {[%clk 0:02:41]}  Ne4 {[%clk 0:02:04]} 18. Bxe4 {[%clk 0:02:37]}  Rxe4 {[%clk 0:02:03]} 19. c4 {[%clk 0:02:34]}  Be6 {[%clk 0:01:53]} 20. cxd5 {[%clk 0:02:21]}  Bxd5 {[%clk 0:01:54]} 21. Nf5 {[%clk 0:02:21]}  Qf6 {[%clk 0:01:41]} 22. Qg3 {[%clk 0:02:16]}  Rbb4 {[%clk 0:01:15]} 23. Ne3 {[%clk 0:02:11]}  Qf4 {[%clk 0:00:49]} 24. Qxf4 {[%clk 0:02:06]}  Rxf4 {[%clk 0:00:50]} 25. Rxd5 {[%clk 0:02:06]}  cxd5 {[%clk 0:00:50]} 26. Nxd5 {[%clk 0:02:07]}  a5 {[%clk 0:00:45]} 27. Nxf4 {[%clk 0:02:06]}  Rxf4 {[%clk 0:00:44]} 28. Rd1 {[%clk 0:02:04]}  a4 {[%clk 0:00:41]} 29. Rd2 {[%clk 0:01:57]}  g5 {[%clk 0:00:38]} 30. g3 {[%clk 0:01:55]}  Rb4 {[%clk 0:00:37]} 31. Rd3 {[%clk 0:01:51]}  Kg7 {[%clk 0:00:36]} 32. Kf1 {[%clk 0:01:51]}  f5 {[%clk 0:00:30]} 33. Ke2 {[%clk 0:01:50]}  f4 {[%clk 0:00:30]} 34. Kd2 {[%clk 0:01:48]}  fxg3 {[%clk 0:00:24]} 35. fxg3 {[%clk 0:01:48]}  axb3 {[%clk 0:00:21]} 36. axb3 {[%clk 0:01:47]}  Kg6 {[%clk 0:00:20]} 37. Kc3 {[%clk 0:01:46]}  Rb8 {[%clk 0:00:20]} 38. b4 {[%clk 0:01:45]}  Rc8+ {[%clk 0:00:19]} 39. Kb3 {[%clk 0:01:45]}  Kf5 {[%clk 0:00:18]} 40. b5 {[%clk 0:01:45]}  Ke4 {[%clk 0:00:17]} 41. Rc3 {[%clk 0:01:44]}  Rb8 {[%clk 0:00:09]} 42. Kb4 {[%clk 0:01:44]}  Kd5 {[%clk 0:00:09]} 43. Rc6 {[%clk 0:01:42]}  h5 {[%clk 0:00:08]} 44. Rg6 {[%clk 0:01:41]}  g4 {[%clk 0:00:05]} 45. hxg4 {[%clk 0:01:41]}  hxg4 {[%clk 0:00:05]} 46. Rxg4 {[%clk 0:01:42]}  Rf8 {[%clk 0:00:05]} 47. Rg5+ {[%clk 0:01:41]}  Kd4 {[%clk 0:00:04]} 48. b6 {[%clk 0:01:41]}  Rf1 {[%clk 0:00:05]} 49. Kb5 {[%clk 0:01:40]}  Rb1+ {[%clk 0:00:04]} 50. Kc6 {[%clk 0:01:40]}  Ke4 {[%clk 0:00:02]} 51. Rb5 {[%clk 0:01:39]}  Rc1+ {[%clk 0:00:02]} 52. Kd6 {[%clk 0:01:40]}  Rd1+ {[%clk 0:00:02]} 53. Ke6 {[%clk 0:01:40]}  Rh1 {[%clk 0:00:02]} 54. b7 {[%clk 0:01:40]}  Rh6+ {[%clk 0:00:02]} 55. Kf7 {[%clk 0:01:39]}  Rh5 {[%clk 0:00:01]} 56. Rxh5 {[%clk 0:01:38]} 1-0


[Site "https://www.chess.com"]

[Event "Titled Tuesday Blitz January 18 2022"]
[White "Martin Carmona, Gaston Manuel"]
[Black "Punin, Andrii"]
[WhiteFideId "22284567"]
[BlackFideId "14112639"]
[WhiteElo "2161"]
[BlackElo "2357"]
[Result "0-1"]
[Round "02"]
[TimeControl "180+1"]
[Date "2022.01.18"]
[WhiteClock "0:00:19"]
[BlackClock "0:00:12"]

1. e4 {[%clk 0:03:00]}  c6 {[%clk 0:02:59]} 2. d4 {[%clk 0:02:58]}  d5 {[%clk 0:02:59]} 3. Nd2 {[%clk 0:02:59]}  dxe4 {[%clk 0:02:59]} 4. Nxe4 {[%clk 0:03:00]}  Bf5 {[%clk 0:03:00]} 5. Ng3 {[%clk 0:03:00]}  Bg6 {[%clk 0:03:00]} 6. h4 {[%clk 0:03:01]}  h6 {[%clk 0:03:00]} 7. Nf3 {[%clk 0:03:01]}  e6 {[%clk 0:03:00]} 8. Ne5 {[%clk 0:02:39]}  Bh7 {[%clk 0:03:00]} 9. Bd3 {[%clk 0:02:39]}  Bxd3 {[%clk 0:03:00]} 10. Qxd3 {[%clk 0:02:40]}  Nd7 {[%clk 0:03:00]} 11. f4 {[%clk 0:02:34]}  Be7 {[%clk 0:02:58]} 12. h5 {[%clk 0:02:02]}  Ngf6 {[%clk 0:02:49]} 13. Bd2 {[%clk 0:02:00]}  O-O {[%clk 0:02:43]} 14. O-O-O {[%clk 0:02:00]}  c5 {[%clk 0:02:43]} 15. Nxd7 {[%clk 0:01:32]}  Qxd7 {[%clk 0:02:39]} 16. f5 {[%clk 0:01:32]}  Qxd4 {[%clk 0:02:29]} 17. Qf3 {[%clk 0:01:10]}  Qd5 {[%clk 0:02:20]} 18. fxe6 {[%clk 0:00:45]}  fxe6 {[%clk 0:02:05]} 19. Qb3 {[%clk 0:00:37]}  Qxb3 {[%clk 0:02:02]} 20. axb3 {[%clk 0:00:37]}  Ng4 {[%clk 0:01:55]} 21. Rde1 {[%clk 0:00:36]}  Bd6 {[%clk 0:01:38]} 22. Ne4 {[%clk 0:00:36]}  Rad8 {[%clk 0:01:33]} 23. Bc3 {[%clk 0:00:31]}  Nf2 {[%clk 0:01:20]} 24. Nxf2 {[%clk 0:00:31]}  Rxf2 {[%clk 0:01:21]} 25. Rxe6 {[%clk 0:00:30]}  Rxg2 {[%clk 0:01:19]} 26. Kb1 {[%clk 0:00:30]}  Bf8 {[%clk 0:01:10]} 27. Rhe1 {[%clk 0:00:29]}  Rg5 {[%clk 0:01:06]} 28. Rg6 {[%clk 0:00:24]}  Rxg6 {[%clk 0:00:42]} 29. hxg6 {[%clk 0:00:24]}  Rd6 {[%clk 0:00:40]} 30. Rg1 {[%clk 0:00:25]}  h5 {[%clk 0:00:37]} 31. Rg5 {[%clk 0:00:23]}  h4 {[%clk 0:00:35]} 32. Rh5 {[%clk 0:00:23]}  Rxg6 {[%clk 0:00:34]} 33. Rxh4 {[%clk 0:00:24]}  b6 {[%clk 0:00:28]} 34. Re4 {[%clk 0:00:24]}  a5 {[%clk 0:00:27]} 35. Re8 {[%clk 0:00:23]}  Kf7 {[%clk 0:00:27]} 36. Re4 {[%clk 0:00:23]}  Bd6 {[%clk 0:00:25]} 37. Ka2 {[%clk 0:00:22]}  Rg2 {[%clk 0:00:22]} 38. Kb1 {[%clk 0:00:21]}  g5 {[%clk 0:00:21]} 39. Re3 {[%clk 0:00:19]}  g4 {[%clk 0:00:20]} 40. Rd3 {[%clk 0:00:19]}  Ke6 {[%clk 0:00:18]} 41. Re3+ {[%clk 0:00:19]}  Kd7 {[%clk 0:00:19]} 42. Rd3 {[%clk 0:00:19]}  Kc6 {[%clk 0:00:19]} 43. Bf6 {[%clk 0:00:18]}  Rg1+ {[%clk 0:00:18]} 44. Ka2 {[%clk 0:00:17]}  g3 {[%clk 0:00:19]} 45. Bh4 {[%clk 0:00:16]}  g2 {[%clk 0:00:18]} 46. Rd2 {[%clk 0:00:17]}  Rh1 {[%clk 0:00:17]} 47. Rxg2 {[%clk 0:00:11]}  Rxh4 {[%clk 0:00:17]} 48. Rd2 {[%clk 0:00:12]}  a4 {[%clk 0:00:16]} 49. bxa4 {[%clk 0:00:12]}  Rxa4+ {[%clk 0:00:17]} 50. Kb3 {[%clk 0:00:13]}  Rb4+ {[%clk 0:00:17]} 51. Ka2 {[%clk 0:00:13]}  Re4 {[%clk 0:00:15]} 52. c3 {[%clk 0:00:13]}  b5 {[%clk 0:00:15]} 53. Rg2 {[%clk 0:00:13]}  Re6 {[%clk 0:00:14]} 54. Rg8 {[%clk 0:00:13]}  Bc7 {[%clk 0:00:13]} 55. Rc8 {[%clk 0:00:13]}  Re2 {[%clk 0:00:12]} 56. Rg8 {[%clk 0:00:14]}  Kb6 {[%clk 0:00:12]} 57. Kb1 {[%clk 0:00:14]}  Be5 {[%clk 0:00:11]} 58. Rg4 {[%clk 0:00:15]}  Kc6 {[%clk 0:00:11]} 59. Rg6+ {[%clk 0:00:15]}  Kd5 {[%clk 0:00:12]} 60. Rg5 {[%clk 0:00:15]}  b4 {[%clk 0:00:11]} 61. cxb4 {[%clk 0:00:16]}  Rxb2+ {[%clk 0:00:11]} 62. Kc1 {[%clk 0:00:16]}  Rxb4 {[%clk 0:00:11]} 63. Rg2 {[%clk 0:00:16]}  Rc4+ {[%clk 0:00:11]} 64. Kb1 {[%clk 0:00:16]}  Rd4 {[%clk 0:00:10]} 65. Rg8 {[%clk 0:00:15]}  Kc4 {[%clk 0:00:11]} 66. Ka2 {[%clk 0:00:15]}  Rd2+ {[%clk 0:00:10]} 67. Kb1 {[%clk 0:00:15]}  Rd1+ {[%clk 0:00:10]} 68. Kc2 {[%clk 0:00:14]}  Rd5 {[%clk 0:00:10]} 69. Rg4+ {[%clk 0:00:14]}  Bd4 {[%clk 0:00:10]} 70. Rg8 {[%clk 0:00:15]}  Rf5 {[%clk 0:00:11]} 71. Rg2 {[%clk 0:00:14]}  Rf2+ {[%clk 0:00:11]} 72. Rxf2 {[%clk 0:00:14]}  Bxf2 {[%clk 0:00:12]} 73. Kb1 {[%clk 0:00:15]}  Kc3 {[%clk 0:00:12]} 74. Ka1 {[%clk 0:00:16]}  Kc2 {[%clk 0:00:11]} 75. Ka2 {[%clk 0:00:17]}  c4 {[%clk 0:00:12]} 76. Ka1 {[%clk 0:00:17]}  c3 {[%clk 0:00:12]} 77. Ka2 {[%clk 0:00:18]}  Kd1 {[%clk 0:00:12]} 78. Ka1 {[%clk 0:00:19]}  c2 {[%clk 0:00:12]} 0-1


[Site "https://www.chess.com"]

[Event "Titled Tuesday Blitz January 18 2022"]
[White "Migot, Tangi"]
[Black "Holt, Conrad"]
[WhiteFideId "662445"]
[BlackFideId "2034387"]
[WhiteElo "2562"]
[BlackElo "2586"]
[Result "0-1"]
[Round "02"]
[TimeControl "180+1"]
[Date "2022.01.18"]
[WhiteClock "0:00:11"]
[BlackClock "0:00:35"]

1. e4 {[%clk 0:03:00]}  e6 {[%clk 0:02:53]} 2. d4 {[%clk 0:03:00]}  d5 {[%clk 0:02:52]} 3. Nc3 {[%clk 0:03:01]}  Nf6 {[%clk 0:02:51]} 4. e5 {[%clk 0:03:01]}  Nfd7 {[%clk 0:02:52]} 5. f4 {[%clk 0:03:01]}  c5 {[%clk 0:02:52]} 6. Nf3 {[%clk 0:03:01]}  Nc6 {[%clk 0:02:53]} 7. Be3 {[%clk 0:03:01]}  cxd4 {[%clk 0:02:54]} 8. Nxd4 {[%clk 0:03:01]}  Bc5 {[%clk 0:02:55]} 9. Qd2 {[%clk 0:03:01]}  O-O {[%clk 0:02:55]} 10. O-O-O {[%clk 0:03:00]}  a6 {[%clk 0:02:56]} 11. Qf2 {[%clk 0:03:00]}  Bxd4 {[%clk 0:02:56]} 12. Bxd4 {[%clk 0:03:00]}  b5 {[%clk 0:02:57]} 13. Bd3 {[%clk 0:02:58]}  b4 {[%clk 0:02:56]} 14. Ne2 {[%clk 0:02:58]}  a5 {[%clk 0:02:57]} 15. Kb1 {[%clk 0:02:58]}  Ba6 {[%clk 0:02:56]} 16. h4 {[%clk 0:02:55]}  a4 {[%clk 0:02:56]} 17. Nc1 {[%clk 0:02:48]}  Qa5 {[%clk 0:02:47]} 18. h5 {[%clk 0:02:43]}  b3 {[%clk 0:02:41]} 19. cxb3 {[%clk 0:02:38]}  axb3 {[%clk 0:02:38]} 20. a3 {[%clk 0:02:38]}  Qa4 {[%clk 0:02:32]} 21. Bxa6 {[%clk 0:02:20]}  Rxa6 {[%clk 0:02:32]} 22. Rh3 {[%clk 0:02:21]}  Rb8 {[%clk 0:02:29]} 23. g4 {[%clk 0:02:10]}  Rb4 {[%clk 0:02:28]} 24. Rhd3 {[%clk 0:02:00]}  Nxd4 {[%clk 0:01:50]} 25. Rxd4 {[%clk 0:01:58]}  Rc4 {[%clk 0:01:47]} 26. Rxc4 {[%clk 0:01:30]}  dxc4 {[%clk 0:01:36]} 27. Qd4 {[%clk 0:01:24]}  Ra7 {[%clk 0:01:34]} 28. Ne2 {[%clk 0:01:17]}  Rc7 {[%clk 0:01:26]} 29. Nc3 {[%clk 0:01:16]}  Qc6 {[%clk 0:01:22]} 30. f5 {[%clk 0:01:06]}  h6 {[%clk 0:01:19]} 31. Ne4 {[%clk 0:00:50]}  Nb6 {[%clk 0:01:13]} 32. fxe6 {[%clk 0:00:27]}  fxe6 {[%clk 0:01:14]} 33. g5 {[%clk 0:00:20]}  Rd7 {[%clk 0:01:07]} 34. Nd6 {[%clk 0:00:20]}  Qg2 {[%clk 0:00:54]} 35. gxh6 {[%clk 0:00:18]}  Qc2+ {[%clk 0:00:53]} 36. Ka1 {[%clk 0:00:18]}  c3 {[%clk 0:00:53]} 37. Rb1 {[%clk 0:00:15]}  Ra7 {[%clk 0:00:35]} 38. Qxc3 {[%clk 0:00:12]}  Rxa3+ {[%clk 0:00:35]} 39. bxa3 {[%clk 0:00:11]}  Qa2# {[%clk 0:00:35]} 0-1


[Site "https://www.chess.com"]